bitfinex/quotes_SOLUSD_20240818
["timestamp","ask_amount","ask_price","bid_price","bid_amount"]
[1723979846940,16.2482,144.61,144.51,0.12549]
[1723979847254,16.2482,144.61,144.51,0.50196]
[1723979847450,16.2482,144.61,144.51,20.50196]
[1723979847657,16.2482,144.61,144.52,45.0]
[1723979847951,16.2482,144.58,144.53,20.0]
[1723979848152,16.2482,144.58,144.51,20.37647]
[1723979848557,16.2482,144.58,144.51,0.37647]
[1723979848932,16.2482,144.58,144.51,20.37647]
[1723979849435,16.2482,144.58,144.52,8.28456372]
[1723979849642,16.2482,144.58,144.53,0.37647]
[1723979850647,16.2482,144.58,144.53,45.37647]
[1723979850848,16.2482,144.58,144.53,65.37647]
[1723979857042,16.2482,144.58,144.54,0.12549]
[1723979857255,16.2482,144.58,144.53,65.37647]
[1723979858458,16.2482,144.58,144.54,0.12549]
[1723979858658,6.0846,144.63,144.54,8.41005372]
[1723979858844,16.1982,144.62,144.55,65.37647]
[1723979860066,16.1982,144.62,144.56,0.12549]
[1723979861654,16.1982,144.62,144.55,65.37647]
[1723979862951,6.0846,144.61,144.51,2.75418092]
[1723979863153,0.12549,144.58,144.43,665.8289]
[1723979863464,6.0846,144.56,144.43,414.31346372]
[1723979863663,16.1982,144.55,144.43,390.3]
[1723979864038,0.12549,144.54,144.42,8.28456372]
[1723979864239,6.0846,144.52,144.42,11.03261434]
[1723979865761,6.0846,144.52,144.43,20.0]
[1723979865970,6.0846,144.52,144.44,49.59155974]
[1723979866147,6.0846,144.52,144.45,20.0]
[1723979866469,6.0846,144.52,144.45,28.28456372]
[1723979867382,6.0846,144.52,144.46,0.12549]
[1723979867548,6.0846,144.52,144.45,8.28456372]
[1723979867748,16.1982,144.51,144.38,8.28456372]
[1723979868055,16.1982,144.51,144.38,24.48276372]
[1723979869467,0.12549,144.5,144.38,8.28456372]
[1723979869655,16.1982,144.49,144.38,8.28456372]
[1723979869858,6.0846,144.48,144.38,8.28456372]
[1723979870772,6.0846,144.48,144.39,20.0]
[1723979871481,6.0846,144.48,144.4,0.37647]
[1723979871650,6.0846,144.48,144.4,53.66103372]
[1723979871853,6.0846,144.48,144.41,20.0]
[1723979875069,6.0846,144.48,144.37,20.12549]
[1723979875270,0.12549,144.47,144.36,8.28456372]
[1723979875459,16.1417,144.46,144.36,8.28456372]
[1723979876046,0.12549,144.45,144.36,8.28456372]
[1723979876249,0.12549,144.42,144.36,8.28456372]
[1723979876475,0.12549,144.4,144.29,270.43938369]
[1723979876673,0.12549,144.4,144.29,8.28456372]
[1723979877056,45.37647,144.4,144.29,8.28456372]
[1723979877258,16.1417,144.39,144.29,8.28456372]
[1723979877459,0.12549,144.38,144.29,8.28456372]
[1723979877765,6.5948,144.37,144.29,8.28456372]
[1723979878463,6.5948,144.37,144.3,0.12549]
[1723979878959,6.5948,144.37,144.3,8.28456372]
[1723979880151,6.5948,144.37,144.31,20.12549]
[1723979880362,6.5948,144.37,144.32,0.12549]
[1723979880875,6.5948,144.37,144.32,0.25098]
[1723979881180,6.5948,144.37,144.33,0.25098]
[1723979882673,16.1417,144.39,144.33,0.25098]
[1723979882866,16.1417,144.39,144.34,0.25098]
[1723979883062,16.1417,144.39,144.35,0.25098]
[1723979883476,16.1417,144.39,144.36,0.12549]
[1723979884775,16.1417,144.39,144.35,0.25098]
[1723979885784,16.1417,144.39,144.36,0.12549]
[1723979886289,16.1417,144.39,144.35,0.25098]
[1723979886464,16.1417,144.39,144.32,0.12549]
[1723979886783,6.5948,144.41,144.32,0.12549]
[1723979886784,6.5948,144.41,144.33,8.28456372]
[1723979886966,6.5948,144.41,144.34,65.50196]
[1723979887395,6.5948,144.41,144.34,81.64366]
[1723979888475,16.1417,144.43,144.36,0.12549]
[1723979888790,16.1417,144.43,144.36,73.78652372]
[1723979889160,16.1417,144.43,144.36,65.50196]
[1723979892278,6.5948,144.45,144.36,86.30196]
[1723979892481,6.5948,144.45,144.36,94.58652372]
[1723979893054,6.5948,144.45,144.36,73.78652372]
[1723979893480,6.5948,144.45,144.36,76.59519149]
[1723979898467,6.5948,144.45,144.36,31.09323149]
[1723979898791,6.5948,144.45,144.36,11.09323149]
[1723979899091,6.5948,144.45,144.36,8.28456372]
[1723979899569,16.5514,144.44,144.36,8.28456372]
[1723979900284,16.5514,144.44,144.37,45.25098]
[1723979900472,16.5514,144.44,144.36,8.28456372]
[1723979900672,16.5514,144.42,144.31,8.28456372]
[1723979901002,16.5514,144.42,144.32,16.2091]
[1723979901296,16.5514,144.42,144.31,8.28456372]
[1723979901591,16.5514,144.42,144.32,16.2091]
[1723979901893,16.5514,144.42,144.32,16.33459]
[1723979902075,16.5514,144.42,144.33,20.0]
[1723979902272,16.5514,144.42,144.33,0.12549]
[1723979902474,16.5514,144.42,144.32,20.0]
[1723979902992,16.5514,144.42,144.33,8.28456372]
[1723979903193,16.5514,144.42,144.34,20.12549]
[1723979903392,16.5514,144.42,144.34,28.41005372]
[1723979903790,16.5514,144.42,144.35,0.25098]
[1723979905885,16.5514,144.42,144.35,0.12549]
[1723979906198,16.5514,144.42,144.34,0.12549]
[1723979906582,16.5514,144.42,144.33,0.12549]
[1723979906782,16.5514,144.42,144.33,45.37647]
[1723979906982,16.5514,144.42,144.34,20.0]
[1723979911409,16.5514,144.42,144.33,0.37647]
[1723979911577,7.21610274,144.46,144.22,672.1557]
[1723979911578,16.09069,144.37,144.22,672.1557]
[1723979911778,16.09069,144.37,144.24,24.83596372]
[1723979912183,6.5714,144.36,144.24,24.83596372]
[1723979912503,15.9652,144.35,144.24,24.83596372]
[1723979913789,15.9652,144.35,144.24,8.28456372]
[1723979914108,15.9652,144.35,144.24,24.24976372]
[1723979914307,15.9652,144.35,144.25,20.0]
[1723979914607,6.5714,144.33,144.24,24.24976372]
[1723979914806,15.9652,144.32,144.24,8.28456372]
[1723979915119,15.9652,144.32,144.25,6.5714]
[1723979916188,15.9652,144.32,144.26,20.0]
[1723979920294,15.9652,144.32,144.27,0.12549]
[1723979920507,15.9652,144.32,144.27,45.37647]
[1723979920708,15.9652,144.32,144.28,20.0]
[1723979921724,15.9652,144.32,144.26,20.0]
[1723979922598,15.9652,144.32,144.22,0.12549]
[1723979922798,15.9652,144.32,144.22,53.78652372]
[1723979923023,15.9652,144.32,144.23,20.0]
[1723979923228,15.9652,144.32,144.24,45.37647]
[1723979923407,15.9652,144.32,144.25,20.0]
[1723979925611,15.9652,144.32,144.26,0.12549]
[1723979925813,15.9652,144.32,144.26,45.37647]
[1723979926009,15.9652,144.32,144.27,20.0]
[1723979926207,15.9652,144.32,144.26,0.37647]
[1723979927298,15.9652,144.32,144.23,20.0]
[1723979927498,15.9652,144.32,144.24,45.37647]
[1723979927804,15.9652,144.32,144.25,20.0]
[1723979928004,15.9652,144.32,144.26,45.37647]
[1723979928227,15.9652,144.32,144.27,20.0]
[1723979928920,15.9652,144.32,144.26,0.37647]
[1723979929305,15.9652,144.32,144.25,20.0]
[1723979929530,15.9652,144.32,144.24,0.25098]
[1723979929709,15.9652,144.32,144.25,0.12549]
[1723979930308,15.9652,144.32,144.25,45.12549]
[1723979930519,15.9652,144.32,144.26,20.25098]
[1723979930702,15.9652,144.32,144.27,0.12549]
[1723979931937,15.9652,144.32,144.26,20.25098]
[1723979935641,15.9652,144.32,144.27,0.12549]
[1723979935813,15.9652,144.32,144.27,53.53554372]
[1723979936015,15.9652,144.32,144.29,0.12549]
[1723979936214,15.9652,144.32,144.29,45.25098]
[1723979936437,15.9652,144.32,144.3,20.25098]
[1723979937511,22.7911,144.36,144.3,20.25098]
[1723979937710,22.7911,144.36,144.31,45.12549]
[1723979937915,22.7911,144.36,144.32,0.12549]
[1723979939642,22.7911,144.36,144.3,20.0]
[1723979939847,22.7911,144.36,144.23,6.1461]
[1723979940051,16.6008,144.35,144.21,25.10786082]
[1723979940232,16.6008,144.35,144.22,8.28456372]
[1723979941127,16.6008,144.35,144.23,21.38592134]
[1723979941342,16.6008,144.35,144.24,8.28456372]
[1723979941743,16.6008,144.35,144.25,20.0]
[1723979942061,16.6008,144.35,144.26,8.53554372]
[1723979942266,16.6008,144.35,144.28,0.12549]
[1723979942428,16.6008,144.35,144.28,0.25098]
[1723979942630,16.6008,144.35,144.29,0.25098]
[1723979942850,16.6008,144.35,144.3,0.12549]
[1723979943156,16.6008,144.35,144.27,65.0]
[1723979943535,16.6008,144.35,144.28,0.12549]
[1723979943758,16.6008,144.35,144.21,16.8232971]
[1723979943939,16.6008,144.33,144.21,25.10786082]
[1723979944130,16.6008,144.33,144.22,8.28456372]
[1723979945157,16.6008,144.31,144.22,8.28456372]
[1723979945366,6.1903,144.3,144.22,8.28456372]
[1723979946536,6.1903,144.3,144.23,20.0]
[1723979947253,6.1903,144.3,144.23,28.28456372]
[1723979948644,6.1903,144.3,144.24,45.37647]
[1723979948843,6.1903,144.3,144.24,53.66103372]
[1723979950339,6.1903,144.3,144.24,0.25098]
[1723979950538,6.1903,144.3,144.23,20.0]
[1723979950740,6.1903,144.3,144.22,0.12549]
[1723979951056,6.1903,144.3,144.22,8.53554372]
[1723979951232,6.1903,144.3,144.23,65.12549]
[1723979951437,6.1903,144.3,144.24,0.25098]
[1723979953470,6.1903,144.3,144.23,73.41005372]
[1723979953678,6.1903,144.3,144.24,0.37647]
[1723979954349,6.1903,144.3,144.24,8.66103372]
[1723979954557,6.1903,144.3,144.25,20.0]
[1723979954757,6.1903,144.3,144.26,0.25098]
[1723979956273,6.1903,144.3,144.25,20.0]
[1723979956993,6.1903,144.3,144.26,0.37647]
[1723979957673,16.6008,144.31,144.27,0.12549]
[1723979957973,16.6008,144.31,144.26,45.37647]
[1723979958178,16.6008,144.31,144.27,20.0]
[1723979958357,16.6008,144.31,144.28,0.37647]
[1723979960074,16.6008,144.31,144.27,20.0]
[1723979960569,16.6008,144.31,144.21,24.54170082]
[1723979960570,16.6008,144.31,144.22,20.12549]
[1723979960753,16.6008,144.31,144.24,0.12549]
[1723979960956,16.6008,144.31,144.24,20.12549]
[1723979961151,16.6008,144.31,144.25,45.37647]
[1723979961362,16.6008,144.31,144.26,20.0]
[1723979964494,16.6008,144.31,144.27,0.12549]
[1723979964679,16.6008,144.31,144.27,0.37647]
[1723979968874,16.6008,144.31,144.27,45.37647]
[1723979969068,16.6008,144.31,144.27,0.37647]
[1723979973670,16.6008,144.31,144.27,45.37647]
[1723979976010,16.6008,144.31,144.28,20.0]
[1723979976298,16.6008,144.31,144.29,0.37647]
[1723979977571,16.6008,144.31,144.28,20.0]
[1723979977998,16.6008,144.31,144.25,0.12549]
[1723979978202,16.6008,144.31,144.25,0.50196]
[1723979978697,16.6008,144.31,144.25,20.50196]
[1723979978904,16.6008,144.31,144.26,45.0]
[1723979979096,16.6008,144.31,144.27,20.37647]
[1723979981473,16.6008,144.31,144.28,1.38589751]
[1723979981774,16.6008,144.31,144.27,20.37647]
[1723979982209,16.6008,144.31,144.28,45.0]
[1723979983206,16.6008,144.31,144.27,20.37647]
[1723979983418,16.6008,144.31,144.27,0.37647]
[1723979983578,16.6008,144.31,144.27,45.37647]
[1723979983780,16.6008,144.31,144.28,20.0]
[1723979984194,16.6008,144.31,144.27,0.37647]
[1723979986307,16.6008,144.31,144.27,45.37647]
[1723979986801,16.6008,144.31,144.28,20.0]
[1723979987580,16.6008,144.31,144.29,0.37647]
[1723979988202,6.5489,144.34,144.29,0.37647]
[1723979988402,22.1778,144.34,144.29,0.37647]
[1723979992185,22.1778,144.34,144.29,0.12549]
[1723979992385,22.1778,144.34,144.28,20.0]
[1723979992601,22.1778,144.34,144.22,16.6008]
[1723979992911,22.1778,144.34,144.23,45.37647]
[1723979993111,22.1778,144.34,144.23,53.66055548]
[1723979993707,22.1778,144.34,144.24,0.12549]
[1723979993914,22.1778,144.34,144.24,8.40957548]
[1723979994101,22.1778,144.34,144.25,65.37647]
[1723979995112,22.1778,144.34,144.26,9.79522959]
[1723979995418,22.1778,144.34,144.28,0.12549]
[1723979996583,15.6289,144.34,144.28,0.12549]
[1723979996808,16.4371,144.38,144.3,0.12549]
[1723979997025,16.4371,144.38,144.3,65.50196]
[1723979997307,16.4371,144.38,144.32,0.12549]
[1723979997517,16.4371,144.38,144.32,65.50196]
[1723980000309,16.4371,144.38,144.32,73.78604548]
[1723980000694,16.4371,144.38,144.34,0.12549]
[1723980000912,16.4371,144.38,144.34,65.50196]
[1723980002102,22.705,144.42,144.34,65.50196]
[1723980002493,16.4371,144.42,144.36,0.12549]
[1723980002693,16.4371,144.42,144.36,65.50196]
[1723980009511,6.2679,144.41,144.3,24.79268548]
[1723980009699,6.2679,144.41,144.31,45.0]
[1723980010400,15.464,144.4,144.3,10.64092226]
[1723980011211,15.464,144.4,144.31,8.28408548]
[1723980011423,15.464,144.4,144.32,0.25098]
[1723980011727,15.464,144.4,144.33,0.25098]
[1723980014929,15.464,144.4,144.34,0.12549]
[1723980016012,15.464,144.4,144.33,0.25098]
[1723980018843,15.464,144.4,144.34,0.12549]
[1723980027518,15.464,144.4,144.34,1.63611421]
[1723980027736,15.464,144.4,144.36,0.12549]
[1723980027930,15.464,144.4,144.36,1.63594612]
[1723980028242,15.464,144.4,144.37,0.25098]
[1723980028457,15.464,144.4,144.38,0.12549]
[1723980032938,15.464,144.4,144.37,0.25098]
[1723980033852,15.464,144.4,144.34,20.0]
[1723980034049,15.464,144.4,144.27,670.1]
[1723980034249,15.464,144.4,144.28,49.62717774]
[1723980034963,15.464,144.4,144.28,49.63295732]
[1723980035266,15.464,144.4,144.29,53.78604548]
[1723980036267,15.464,144.4,144.31,0.12549]
[1723980036452,15.464,144.4,144.31,53.78604548]
[1723980036761,15.464,144.4,144.32,20.0]
[1723980036965,15.464,144.4,144.33,0.37647]
[1723980037373,15.464,144.4,144.34,0.12549]
[1723980037847,15.464,144.4,144.34,20.12549]
[1723980038049,15.464,144.4,144.35,45.37647]
[1723980039162,15.464,144.4,144.36,20.0]
[1723980039372,15.464,144.4,144.37,0.25098]
[1723980041431,6.2165,144.45,144.38,0.12549]
[1723980041637,15.5428,144.44,144.38,0.12549]
[1723980041839,15.5428,144.44,144.38,0.25098]
[1723980042043,15.5428,144.44,144.39,0.25098]
[1723980044643,15.5428,144.44,144.39,0.12549]
[1723980044868,15.5428,144.44,144.38,20.12549]
[1723980045169,15.5428,144.44,144.39,1.38484236]
[1723980045371,15.5428,144.44,144.38,20.12549]
[1723980047645,15.5428,144.44,144.37,0.12549]
[1723980047846,15.5428,144.44,144.38,0.12549]
[1723980048148,15.5428,144.44,144.38,0.25098]
[1723980048564,15.5428,144.44,144.37,0.25098]
[1723980049268,15.5428,144.44,144.38,0.12549]
[1723980049473,15.5428,144.44,144.38,0.25098]
[1723980049664,15.5428,144.44,144.39,0.25098]
[1723980049846,15.5428,144.44,144.4,0.12549]
[1723980056665,15.5428,144.44,144.4,0.25098]
[1723980057172,15.5428,144.44,144.41,0.37647]
[1723980057370,15.5428,144.44,144.42,0.12549]
[1723980059767,15.5428,144.44,144.41,0.25098]
[1723980059962,15.5428,144.44,144.42,0.12549]
[1723980060164,15.5428,144.44,144.4,0.37647]
[1723980062381,15.5428,144.44,144.41,0.12549]
[1723980065669,16.2881,144.48,144.41,0.12549]
[1723980067364,16.2881,144.48,144.4,0.37647]
[1723980067776,16.2881,144.48,144.4,0.25098]
[1723980067978,16.2881,144.48,144.39,20.0]
[1723980068190,6.0821,144.47,144.38,8.28408548]
[1723980068489,16.2881,144.46,144.35,2.38872303]
[1723980068667,16.2881,144.46,144.37,16.2881]
[1723980068875,16.2881,144.46,144.35,8.28408548]
[1723980070086,16.2881,144.46,144.36,20.0]
[1723980070291,16.2881,144.46,144.37,0.25098]
[1723980070588,16.2881,144.46,144.38,0.12549]
[1723980072967,16.2881,144.46,144.38,8.40957548]
[1723980073167,16.2881,144.46,144.39,0.25098]
[1723980073365,6.432,144.45,144.36,20.0]
[1723980073566,16.1732,144.44,144.37,0.37647]
[1723980074696,16.1732,144.44,144.37,20.37647]
[1723980075381,6.0745,144.43,144.37,20.0]
[1723980075564,16.0864,144.42,144.37,20.0]
[1723980075761,16.0864,144.42,144.32,20.0]
[1723980075988,16.0864,144.42,144.32,28.28408548]
[1723980076188,16.0864,144.42,144.33,8.28408548]
[1723980076392,16.0864,144.42,144.34,20.0]
[1723980076582,16.0864,144.42,144.34,28.28408548]
[1723980076902,16.0864,144.42,144.35,0.25098]
[1723980078069,16.0864,144.42,144.36,0.12549]
[1723980078271,16.0864,144.42,144.36,0.25098]
[1723980078471,16.0864,144.42,144.37,0.25098]
[1723980078874,16.0864,144.42,144.38,8.53506548]
[1723980079074,16.0864,144.42,144.39,20.25098]
[1723980079270,16.0864,144.42,144.4,0.12549]
[1723980079673,16.0864,144.42,144.39,20.25098]
[1723980079899,16.0864,144.42,144.39,20.0]
[1723980080075,16.0864,144.42,144.36,20.12549]
[1723980080274,16.0864,144.42,144.37,45.37647]
[1723980080475,16.0864,144.42,144.38,20.0]
[1723980080699,16.0864,144.42,144.39,0.37647]
[1723980082085,16.0864,144.42,144.39,45.37647]
[1723980082280,16.0864,144.42,144.4,1.38473281]
[1723980083376,16.0864,144.42,144.39,45.37647]
[1723980084695,16.0864,144.42,144.39,0.37647]
[1723980085684,16.0864,144.42,144.37,20.0]
[1723980085890,16.0864,144.42,144.31,49.61906458]
[1723980086401,16.0864,144.42,144.31,8.28408548]
[1723980087198,16.0864,144.42,144.33,0.12549]
[1723980087399,16.0864,144.42,144.33,0.25098]
[1723980087591,16.0864,144.42,144.34,0.25098]
[1723980087785,16.0864,144.42,144.35,0.12549]
[1723980090188,16.0864,144.42,144.35,8.53506548]
[1723980090389,16.0864,144.42,144.36,65.37647]
[1723980090683,16.0864,144.42,144.37,0.12549]
[1723980091210,16.0864,144.42,144.36,20.12549]
[1723980091383,16.0864,144.42,144.36,0.12549]
[1723980091582,16.0864,144.42,144.32,0.12549]
[1723980091892,6.6374,144.41,144.31,22.36842951]
[1723980092208,15.6264,144.4,144.31,22.36842951]
[1723980092706,15.6264,144.4,144.31,30.65251499]
[1723980092928,15.6264,144.4,144.31,28.28408548]
[1723980093687,15.6264,144.4,144.32,8.28408548]
[1723980093887,15.6264,144.4,144.33,20.0]
[1723980096495,15.6264,144.4,144.32,8.53506548]
[1723980096697,16.1106,144.38,144.32,0.12549]
[1723980097090,16.1106,144.38,144.32,0.25098]
[1723980098184,16.1106,144.38,144.32,0.12549]
[1723980098388,16.1106,144.38,144.31,0.12549]
[1723980098806,16.1106,144.38,144.31,0.25098]
[1723980099217,16.1106,144.38,144.3,0.12549]
[1723980099513,16.1106,144.38,144.3,0.37647]
[1723980101008,6.4996,144.37,144.3,0.37647]
[1723980101202,6.4996,144.35,144.28,8.28408548]
[1723980101404,6.4996,144.35,144.29,0.37647]
[1723980101920,16.1106,144.34,144.28,8.28408548]
[1723980102419,16.1106,144.34,144.23,8.28408548]
[1723980103286,16.1106,144.34,144.24,20.0]
[1723980103516,16.1106,144.34,144.24,28.28408548]
[1723980104520,22.6102,144.33,144.24,8.28408548]
[1723980104741,16.1106,144.32,144.24,8.28408548]
[1723980106146,16.1106,144.29,144.22,8.284086]
[1723980106329,16.1106,144.27,144.22,8.284086]
[1723980106824,16.1106,144.27,144.21,0.8580971]
[1723980120061,16.1106,144.27,144.22,1.38645059]
[1723980120364,16.1106,144.27,144.23,0.37647]
[1723980120868,16.1106,144.27,144.23,20.37647]
[1723980122974,16.1106,144.27,144.23,20.25098]
[1723980123176,16.1106,144.27,144.23,20.0]
[1723980123463,16.1106,144.27,144.21,0.8580971]
[1723980123772,16.1106,144.27,144.22,0.37647]
[1723980126470,16.1106,144.27,144.22,0.12549]
[1723980126774,16.1106,144.27,144.21,0.8580971]
[1723980137559,0.12549,144.26,144.21,0.8580971]
[1723980137785,45.12549,144.26,144.21,0.8580971]
[1723980137990,16.0259,144.25,144.21,0.8580971]
[1723980138487,0.12549,144.23,144.21,0.8580971]
[1723980138785,0.12549,144.23,144.15,8.28408548]
[1723980138786,16.0259,144.22,144.15,8.28408548]
[1723980140389,16.0259,144.22,144.16,0.37647]
[1723980140689,16.0259,144.22,144.16,20.37647]
[1723980140897,16.0259,144.22,144.16,65.37647]
[1723980141099,22.3624,144.34,144.17,8.40957548]
[1723980141399,22.3624,144.31,144.19,0.12549]
[1723980143005,0.12549,144.3,144.18,65.37647]
[1723980143298,16.0259,144.29,144.19,0.12549]
[1723980146182,16.0259,144.29,144.18,65.37647]
[1723980146692,16.0259,144.29,144.18,65.25098]
[1723980147815,6.3365,144.28,144.19,0.12549]
[1723980149911,6.3365,144.28,144.19,8.53506548]
[1723980150118,6.3365,144.28,144.21,0.12549]
[1723980150319,6.3365,144.28,144.21,45.25098]
[1723980150485,6.3365,144.28,144.22,0.12549]
[1723980150687,6.3365,144.28,144.22,20.37647]
[1723980150910,6.3365,144.28,144.23,1.3862897]
[1723980151091,6.3365,144.28,144.23,0.12549]
[1723980151294,6.3365,144.28,144.23,0.37647]
[1723980151600,6.3365,144.28,144.23,0.25098]
[1723980151800,6.3365,144.28,144.22,20.12549]
[1723980152501,6.3365,144.28,144.22,20.0]
[1723980152705,6.3365,144.28,144.18,22.74739659]
[1723980152908,6.3365,144.28,144.19,0.25098]
[1723980153290,6.3365,144.28,144.19,45.25098]
[1723980153498,6.3365,144.28,144.2,20.0]
[1723980154206,6.3365,144.28,144.21,53.66055548]
[1723980154409,6.3365,144.28,144.22,20.12549]
[1723980154626,6.3365,144.28,144.23,0.25098]
[1723980154808,6.3295,144.33,144.24,0.25098]
[1723980155017,6.3295,144.33,144.26,0.12549]
[1723980155201,6.3295,144.33,144.26,0.25098]
[1723980155515,6.3295,144.33,144.27,0.25098]
[1723980155725,6.3295,144.33,144.28,0.12549]
[1723980155925,6.3295,144.33,144.28,20.12549]
[1723980156301,6.3295,144.33,144.28,20.0]
[1723980156512,6.3295,144.33,144.2,15.5715]
[1723980156821,6.3295,144.33,144.21,65.37647]
[1723980157030,6.3295,144.33,144.21,73.77755548]
[1723980157924,6.3295,144.33,144.22,0.25098]
[1723980158123,6.3295,144.33,144.23,8.65206548]
[1723980158414,6.3295,144.33,144.24,20.12549]
[1723980158628,6.3295,144.33,144.25,0.25098]
[1723980166425,6.3295,144.33,144.25,0.12549]
[1723980166737,6.3295,144.33,144.21,65.12549]
[1723980166738,6.3047,144.3,144.16,22.4398]
[1723980167023,15.644,144.29,144.17,8.40108548]
[1723980168223,15.644,144.29,144.18,65.50196]
[1723980168421,15.644,144.29,144.18,73.90304548]
[1723980169026,15.644,144.29,144.2,0.12549]
[1723980169330,15.644,144.29,144.2,73.90304548]
[1723980169510,15.644,144.29,144.2,73.77755548]
[1723980169711,15.644,144.29,144.21,0.12549]
[1723980169923,15.644,144.29,144.21,0.37647]
[1723980173829,15.644,144.29,144.21,45.37647]
[1723980174219,15.644,144.29,144.22,20.0]
[1723980176741,15.644,144.29,144.23,0.37647]
[1723980176915,15.644,144.29,144.23,0.25098]
[1723980178221,15.644,144.29,144.22,0.25098]
[1723980178844,15.644,144.29,144.23,0.12549]
[1723980179011,15.644,144.29,144.23,65.25098]
[1723980179211,15.644,144.29,144.24,0.25098]
[1723980179523,15.5726,144.33,144.25,0.25098]
[1723980179707,15.5726,144.33,144.27,0.12549]
[1723980179909,15.5726,144.33,144.27,0.25098]
[1723980180104,15.5726,144.33,144.27,0.12549]
[1723980182845,15.5726,144.33,144.26,0.25098]
[1723980183929,15.5726,144.33,144.23,20.0]
[1723980185221,15.5726,144.33,144.24,0.25098]
[1723980192032,15.5726,144.33,144.25,0.12549]
[1723980196752,22.92219,144.32,144.23,20.0]
[1723980197050,6.4134,144.29,144.19,2.37457851]
[1723980197366,6.4134,144.29,144.17,8.40108548]
[1723980197367,6.4134,144.29,144.18,20.0]
[1723980197542,6.4134,144.29,144.18,28.40108548]
[1723980198968,6.4134,144.29,144.18,8.40108548]
[1723980199155,6.4134,144.29,144.19,45.50196]
[1723980199964,16.50879,144.28,144.18,8.40108548]
[1723980200271,16.50879,144.28,144.19,20.0]
[1723980201163,16.3833,144.28,144.19,20.0]
[1723980201462,16.3833,144.28,144.2,0.37647]
[1723980205165,16.3833,144.28,144.19,20.0]
[1723980205470,22.7967,144.26,144.16,2.83644341]
[1723980205675,22.7967,144.26,144.16,20.0]
[1723980205867,22.7967,144.26,144.16,28.40108548]
[1723980206665,22.7967,144.26,144.17,8.40108548]
[1723980206888,22.7967,144.26,144.18,20.25098]
[1723980207173,22.7967,144.26,144.19,0.25098]
[1723980207357,22.7967,144.26,144.2,0.12549]
[1723980207747,22.7967,144.26,144.2,20.12549]
[1723980208055,22.7967,144.26,144.2,20.0]
[1723980208253,22.7967,144.26,144.19,0.25098]
[1723980208464,22.7967,144.26,144.2,0.12549]
[1723980212970,22.7967,144.26,144.2,0.25098]
[1723980213168,22.7967,144.26,144.21,0.25098]
[1723980213352,22.7967,144.26,144.22,0.12549]
[1723980214885,22.7967,144.26,144.21,20.12549]
[1723980215086,22.7967,144.26,144.21,0.12549]
[1723980216150,22.7967,144.26,144.17,20.0]
[1723980216389,22.7967,144.26,144.18,8.52657548]
[1723980216565,22.7967,144.26,144.19,20.0]
[1723980217066,22.7967,144.26,144.19,28.40108548]
[1723980218679,22.7967,144.26,144.2,8.40108548]
[1723980218861,22.7967,144.26,144.21,0.12549]
[1723980219061,22.7967,144.26,144.21,0.25098]
[1723980219278,22.7967,144.26,144.22,0.25098]
[1723980219583,22.7967,144.26,144.22,0.12549]
[1723980219765,22.7967,144.26,144.22,45.37647]
[1723980219963,22.7967,144.26,144.23,0.12549]
[1723980220171,22.7967,144.26,144.23,0.37647]
[1723980220350,22.7967,144.26,144.21,8.40108548]
[1723980220557,22.7967,144.26,144.22,0.37647]
[1723980223262,16.3833,144.26,144.22,0.37647]
[1723980223479,16.3833,144.26,144.22,20.37647]
[1723980223663,16.3833,144.26,144.23,1.38633815]